{"text_format":"1","workbook":"xlsx","n_sheets":18,"sheets":["Баланс","Электро","Тепло","Пр-й газ","Уголь","Каменный Уголь","Кокс","Коксовый газ","Нефтепродукты","Бензин","Дизель","Мазут","СУГ","ТПБ","ПТТ","Пеллеты","Древесина","Пр.тв.т. "],"not_rendered":{"charts":0,"images":0,"macros":1,"external_links":0,"defined_names":2,"comments":0,"pivot_tables":0},"unopened":[],"bounds":{"document_bytes":16777216,"sheet_cells":100000,"rows_first":2000,"rows_last":500,"rows_between":2000,"halvings":0,"cell_chars":16384,"cell_head_chars":4096},"cells_cut":0,"cells_raw":0,"read":"whole","date_system":"1900"}

{"sheet":"Баланс","index":0,"n_rows":38,"n_cols":19,"rows_kept":38,"cut":false,"hidden":false,"merged":[]}
[null,null,null,null,null,null,null,null,null,"Московская область.","2022 год"]
["Топливно-энергетический баланс"]
["ТЭБ, тыс. т у.т.","Год","Уголь","Нефть","Нефте-продукты","Природ-ный газ","Прочее твёрдое топливо","Гидро-энергия и НВИЭ","Атомная энергия","Электро-энергия","Тепловая энергия","Всего"]
[null,null,1,2,3,4,5,6,7,8,9,10]
["Производство энергетических ресурсов",2020,{"$f":"Уголь!B3","v":0},null,{"$f":"Нефтепродукты!B3","v":0},{"$f":"'Пр-й газ'!B3","v":0},{"$f":"ПТТ!B3","v":0},{"$f":"Электро!B4","v":0},null,null,null,{"$f":"SUM(C5:K5)","v":0}]
["Ввоз",2020,{"$f":"Уголь!B4","v":0},null,{"$f":"Нефтепродукты!B4","v":0},{"$f":"'Пр-й газ'!B4","v":0},{"$f":"ПТТ!B4","v":0},null,null,{"$f":"Электро!B5","v":0},{"$f":"Тепло!B8","v":0},0]
["Вывоз",2020,{"$f":"Уголь!B5","v":0},null,{"$f":"Нефтепродукты!B5","v":0},{"$f":"'Пр-й газ'!B5","v":0},{"$f":"ПТТ!B5","v":0},null,null,{"$f":"-Электро!B6","v":0},{"$f":"Тепло!B9","v":0},0]
["Изменение запасов",2020,{"$f":"Уголь!B6","v":0},null,{"$f":"Нефтепродукты!B6","v":0},{"$f":"'Пр-й газ'!B6","v":0},{"$f":"ПТТ!B6","v":0},null,null,{"$f":"Электро!B7","v":0},{"$f":"Тепло!B10","v":0},0,null,null,null,null,null,null,0]
["Потребление первичной энергии",2020,{"$f":"Уголь!B7","v":0},null,{"$f":"Нефтепродукты!B7","v":0},{"$f":"'Пр-й газ'!B7","v":0},{"$f":"ПТТ!B7","v":0},{"$f":"H5","v":0},null,{"$f":"SUM(J5:J8)","v":0},{"$f":"SUM(K5:K8)","v":0},{"$f":"SUM(C9:K9)","v":0}]
["Статистическое расхождение",2020,{"$f":"Уголь!B8","v":0},null,{"$f":"Нефтепродукты!B8","v":0},{"$f":"'Пр-й газ'!B8","v":0},{"$f":"ПТТ!B8","v":0},null,null,{"$f":"Электро!B9","v":0},{"$f":"Тепло!B12","v":0},{"$f":"SUM(C10:K10)","v":0}]
["Производство ЭЭ",2020,{"$f":"-Уголь!B10","v":0},null,{"$f":"-Нефтепродукты!B10","v":0},{"$f":"-'Пр-й газ'!B10","v":0},{"$f":"-ПТТ!C10","v":0},{"$f":"-H9","v":0},null,{"$f":"Электро!B3","v":0},0,{"$f":"SUM(C11:K11)","v":0}]
["Производство тепловой энергии",2020,{"$f":"C13+C14+C15","v":0},null,{"$f":"E13+E14+E15","v":0},0,0,0,null,0,0,{"$f":"SUM(C12:K12)","v":0}]
["Теплоэлектростанции",2020,{"$f":"-Уголь!B12","v":0},null,{"$f":"-Нефтепродукты!B12","v":0},{"$f":"-'Пр-й газ'!B12","v":0},{"$f":"-ПТТ!B12","v":0},null,null,{"$f":"-Электро!B11","v":0},{"$f":"Тепло!B4","v":0},0]
["Котельные",2020,{"$f":"-Уголь!B13","v":0},null,{"$f":"-Нефтепродукты!B13","v":0},{"$f":"-'Пр-й газ'!B13","v":0},{"$f":"-ПТТ!B13","v":0},null,null,{"$f":"-Электро!B12","v":0},{"$f":"Тепло!B5","v":0},0]
["Электрокотельные и теплоутилизационные установки",2020,{"$f":"-(Уголь!B14+Уголь!B15)","v":0},null,{"$f":"-(Нефтепродукты!B14+Нефтепродукты!B15)","v":0},{"$f":"-('Пр-й газ'!B14+'Пр-й газ'!B15)","v":0},{"$f":"-(ПТТ!B14+ПТТ!B15)","v":0},null,null,{"$f":"-(Электро!B13+Электро!B14)","v":0},{"$f":"Тепло!B6+Тепло!B7","v":0},0]
["Преобразование топлива",2020,{"$f":"C17+C18+C19","v":0},{"$f":"D17+D18+D19","v":0},0,0,0,0,0,0,{"$f":"K17+K18+K19","v":0},{"$f":"SUM(C16:K16)","v":0}]
["Переработка нефти",2020,{"$f":"-Уголь!B16","v":0},null,{"$f":"-Нефтепродукты!B16","v":0},{"$f":"-'Пр-й газ'!B17","v":0},{"$f":"-ПТТ!B16","v":0},null,null,{"$f":"-Электро!B15","v":0},{"$f":"-Тепло!B13","v":0},{"$f":"SUM(C17:K17)","v":0}]
["Переработка газа",2020,{"$f":"-Уголь!B17","v":0},null,{"$f":"-Нефтепродукты!B17","v":0},{"$f":"-'Пр-й газ'!B18","v":0},{"$f":"-ПТТ!B17","v":0},null,null,{"$f":"-Электро!B16","v":0},{"$f":"-Тепло!B14","v":0},0]
["Обогащение угля",2020,{"$f":"-Уголь!B18","v":0},null,{"$f":"-Нефтепродукты!B18","v":0},{"$f":"-'Пр-й газ'!B19","v":0},{"$f":"-ПТТ!B18","v":0},null,null,{"$f":"-Электро!B17","v":0},{"$f":"-Тепло!B15","v":0},0]
["Собственные нужды",2020,{"$f":"-Уголь!B19","v":0},null,{"$f":"-Нефтепродукты!B19","v":0},{"$f":"-'Пр-й газ'!B19","v":0},{"$f":"-ПТТ!B19","v":0},null,null,{"$f":"-Электро!B18","v":0},{"$f":"-Тепло!B16","v":0},0]
["Потери при передаче",2020,{"$f":"-Уголь!B20","v":0},null,{"$f":"-Нефтепродукты!B20","v":0},{"$f":"-'Пр-й газ'!B20","v":0},{"$f":"-ПТТ!B20","v":0},null,null,{"$f":"-Электро!B19","v":0},{"$f":"-Тепло!B17","v":0},0]
["Конечное потребление",2020,{"$f":"Уголь!B21","v":0},null,{"$f":"Нефтепродукты!B21","v":0},{"$f":"'Пр-й газ'!B22","v":0},{"$f":"ПТТ!B21","v":0},null,null,{"$f":"Электро!B20","v":0},{"$f":"Тепло!B18","v":0},{"$f":"SUM(C22:K22)","v":0}]
["Сельское хозяйство",2020,{"$f":"Уголь!B22","v":0},null,{"$f":"Нефтепродукты!B22","v":0},{"$f":"'Пр-й газ'!B23","v":0},{"$f":"ПТТ!B22","v":0},null,null,{"$f":"Электро!B21","v":0},{"$f":"Тепло!B19","v":0},0]
["Промышленность",2020,{"$f":"Уголь!B23","v":0},null,{"$f":"Нефтепродукты!B23","v":0},{"$f":"'Пр-й газ'!B24","v":0},{"$f":"ПТТ!B23","v":0},null,null,{"$f":"Электро!B22","v":0},{"$f":"Тепло!B20","v":0},0]
["   Добыча полезных ископаемых",null,{"$f":"Уголь!B24","v":0},null,{"$f":"Нефтепродукты!B24","v":0},{"$f":"'Пр-й газ'!B25","v":0},{"$f":"ПТТ!B24","v":0},null,null,{"$f":"Электро!B23","v":0},{"$f":"Тепло!B21","v":0},0]
["   Обрабатывающие производства",null,{"$f":"Уголь!B25","v":0},null,{"$f":"Нефтепродукты!B25","v":0},{"$f":"'Пр-й газ'!B26","v":0},{"$f":"ПТТ!B25","v":0},null,null,{"$f":"Электро!B24","v":0},{"$f":"Тепло!B22","v":0},0]
["   Обеспечение ЭЭ, газом и паром",null,{"$f":"Уголь!B26","v":0},null,{"$f":"Нефтепродукты!B26","v":0},{"$f":"'Пр-й газ'!B27","v":0},{"$f":"ПТТ!B26","v":0},null,null,{"$f":"Электро!B25","v":0},{"$f":"Тепло!B23","v":0},0]
["   Водоснабжение, водоотведение, утилизация отходов",2020,{"$f":"Уголь!B27","v":0},null,{"$f":"Нефтепродукты!B27","v":0},{"$f":"'Пр-й газ'!B28","v":0},{"$f":"ПТТ!B27","v":0},null,null,{"$f":"Электро!B26","v":0},{"$f":"Тепло!B24","v":0},0]
["   Прочая промышленность",null,{"$f":"Уголь!B28","v":0},null,{"$f":"Нефтепродукты!B28","v":0},{"$f":"'Пр-й газ'!B29","v":0},{"$f":"ПТТ!B28","v":0},null,null,{"$f":"Электро!B27","v":0},{"$f":"Тепло!B25","v":0},0]
["Строительство ",2020,{"$f":"Уголь!B29","v":0},null,{"$f":"Нефтепродукты!B29","v":0},{"$f":"'Пр-й газ'!B30","v":0},{"$f":"ПТТ!B29","v":0},null,null,{"$f":"Электро!B28","v":0},{"$f":"Тепло!B26","v":0},0]
["Транспорт и связь",2020,{"$f":"Уголь!B30","v":0},null,{"$f":"Нефтепродукты!B30","v":0},{"$f":"'Пр-й газ'!B31","v":0},{"$f":"ПТТ!B30","v":0},null,null,{"$f":"Электро!B29","v":0},{"$f":"Тепло!B27","v":0},0]
["Железнодорожный",2020,{"$f":"Уголь!B31","v":0},null,{"$f":"Нефтепродукты!B31","v":0},{"$f":"'Пр-й газ'!B32","v":0},{"$f":"ПТТ!B31","v":0},null,null,{"$f":"Электро!B30","v":0},{"$f":"Тепло!B28","v":0},0]
["Трубопроводный",2020,{"$f":"Уголь!B32","v":0},null,{"$f":"Нефтепродукты!B32","v":0},{"$f":"'Пр-й газ'!B33","v":0},{"$f":"ПТТ!B32","v":0},null,null,{"$f":"Электро!B31","v":0},{"$f":"Тепло!B29","v":0},0]
["Автомобильный",2020,{"$f":"Уголь!B33","v":0},null,{"$f":"Нефтепродукты!B33","v":0},{"$f":"'Пр-й газ'!B34","v":0},{"$f":"ПТТ!B33","v":0},null,null,{"$f":"Электро!B32","v":0},{"$f":"Тепло!B30","v":0},0]
["Прочий транспорт",2020,{"$f":"Уголь!B34","v":0},null,{"$f":"Нефтепродукты!B34","v":0},{"$f":"'Пр-й газ'!B35","v":0},{"$f":"ПТТ!B34","v":0},null,null,{"$f":"Электро!B33","v":0},{"$f":"Тепло!B31","v":0},0]
["Сфера услуг",2020,{"$f":"Уголь!B35","v":0},null,{"$f":"Нефтепродукты!B35","v":0},{"$f":"'Пр-й газ'!B36","v":0},{"$f":"ПТТ!B35","v":0},null,null,{"$f":"Электро!B34","v":0},{"$f":"Тепло!B32","v":0},0]
["Население",2020,{"$f":"Уголь!B36","v":0},null,{"$f":"Нефтепродукты!B36","v":0},{"$f":"'Пр-й газ'!B37","v":0},{"$f":"ПТТ!B36","v":0},null,null,{"$f":"Электро!B35","v":0},{"$f":"Тепло!B33","v":0},0]
["Неэнергетические нужды",2020,{"$f":"Уголь!B37","v":0},null,{"$f":"Нефтепродукты!B37","v":0},{"$f":"'Пр-й газ'!B38","v":0},{"$f":"ПТТ!B37","v":0},null,null,{"$f":"Электро!B36","v":0},{"$f":"Тепло!B34","v":0},0]

{"sheet":"Электро","index":1,"n_rows":39,"n_cols":6,"rows_kept":39,"cut":false,"hidden":false,"merged":[]}
[null,null,null,null,{"$f":"Баланс!J1","v":"Московская область."},{"$f":"Баланс!K1","v":"2022 год"}]
["Электрическая энергия","В баланс, тыс. т у.т., к-т перевода 0.123","В баланс, тыс. кВтч"]
["Выработано",{"$f":"C3*0.123/1000","v":0}]
["в том числе Гидро",{"$f":"C4*0.123/1000","v":0}]
["Получено из-за пределов области",0]
["Отпущено за пределы области",0]
["Изменение запасов",0]
["Потреблено всего",0,{"$f":"C3+C5-C6+C7","v":0}]
["Стат.расхождение",0,{"$f":"C8-C10-C15-C16-C17-C18-C19-C20","v":0}]
["Производство тепла",0]
["   Теплоэлектростанции",0]
["Котельные",0]
["Электрокотельные",0]
["В теплоутилизационных и прочих установках",0]
["Переработка нефти",0]
["Переработка газа",0]
["Обогащение угля",0]
["Собственные нужды",0]
["Потери в сетях",0]
["Конечное потребление",0,{"$f":"C21+C22+C28+C29+C34+C35+C36","v":0}]
["Сельское хозяйство, рыболовство, лесное хозяйство",0]
["Промышленность",0]
["   Добыча полезных ископаемых",0]
["   Обрабатывающие производства",0]
["   Обеспечение ЭЭ, газом и паром",0]
["   Водоснабжение, водоотведение, утилизация отходов",0]
["   Прочая промышленность",0]
["Строительство ",0]
["Транспортировка, хранение и связь",0]
["    Железнодорожный",0]
["Трубопроводный",0]
["Автомобильный",0]
["Прочий транспорт",0]
["Сфера услуг",0]
["Население",0]
["Неэнергетические нужды",0]
[]
[]
[" "]

{"sheet":"Тепло","index":2,"n_rows":34,"n_cols":6,"rows_kept":34,"cut":false,"hidden":false,"merged":[]}
[null,null,null,null,{"$f":"Баланс!J1","v":"Московская область."},{"$f":"Баланс!K1","v":"2022 год"}]
["Тепловая энергия","В баланс, тыс. т у.т., к-т перевода 0.14286","В баланс, Гкал"]
["Выработано",{"$f":"C3*0.14286/1000","v":0}]
["Электростанциями",0]
["Котельными",0]
["в электрокотлах",0]
["В теплоутилизационных и прочих установках",0]
["Ввоз",0]
["Вывоз",0]
["Изменение запасов",0]
["Потреблено всего",0,{"$f":"C3+C8-C9+C10","v":0}]
["Стат.расхождение",0,{"$f":"C11-C13-C14-C15-C16-C17-C18","v":0}]
["Переработка нефти",0]
["Переработка газа",0]
["Обогащение угля",0]
["Собственные нужды",0]
["Потери в сетях",0]
["Конечное потребление",0,{"$f":"C19+C20+C26+C27+C32+C33+C34","v":0}]
["Сельское хозяйство",0]
["Промышленность",0]
["   Добыча полезных ископаемых",0]
["   Обрабатывающие производства",0]
["   Обеспечение ЭЭ, газом и паром",0]
["   Водоснабжение, водоотведение, утилизация отходов",0]
["   Прочая промышленность",0]
["Строительство ",0]
["Транспортировка, хранение и связь",0]
["Железнодорожный",0]
["Трубопроводный",0]
["Автомобильный",0]
["Прочий транспорт",0]
["Сфера услуг",0]
["Население",0]
["Неэнергетические нужды",0]

{"sheet":"Пр-й газ","index":3,"n_rows":38,"n_cols":6,"rows_kept":38,"cut":false,"hidden":false,"merged":[]}
[null,null,null,null,{"$f":"Баланс!J1","v":"Московская область."},"2022 г."]
["Природный газ","В баланс, тыс. т у.т., к-т перевода 1.154","В натуральных единицах, тыс. куб. м/т у.т."]
["Выработано",{"$f":"C3*1.154/1000","v":0}]
["Получено из-за пределов области",{"$f":"C4*1.154/1000","v":0}]
["Отпущено за пределы области",0]
["Изменение запасов",0]
["Потреблено всего",0,{"$f":"C3+C4-C5+C6","v":0}]
["Стат.расхождение",0,{"$f":"C7-C9-C17-C18-C19-C22","v":0}]
["Производство ЭЭ и ТЭ",0]
["Производство электроэнергии",0]
["Производство тепла",0]
["Теплоэлектростанции",0]
["Котельные",0]
["Электрокотельные",0]
["В теплоутилизационных и прочих установках",0]
["   Электростанции ",0]
["Переработка нефти",0]
["Переработка газа",0]
["Обогащение угля",0]
["Собственные нужды",0]
["Потери в сетях",0]
["Конечное потребление",0,{"$f":"C23+C24+C30+C31+C36+C37+C38","v":0}]
["Сельское хозяйство",0]
["Промышленность",0]
["   Добыча полезных ископаемых",0]
["   Обрабатывающие производства",0]
["   Обеспечение ЭЭ, газом и паром",0]
["   Водоснабжение, водоотведение, утилизация отходов",0]
["   Прочая промышленность",0]
["Строительство ",0]
["Транспортировка, хранение и связь",0]
["Железнодорожный",0]
["Трубопроводный",0]
["Автомобильный",0]
["Прочий транспорт",0]
["Сфера услуг",0]
["Население",0]
["Неэнергетические нужды",0]

{"sheet":"Уголь","index":4,"n_rows":37,"n_cols":6,"rows_kept":37,"cut":false,"hidden":false,"merged":[]}
[null,null,null,null,{"$f":"Баланс!J1","v":"Московская область."},"2022 год"]
["Уголь","В баланс, тыс. т у.т."]
["Выработано",{"$f":"'Каменный Уголь'!B3+Кокс!B3+'Коксовый газ'!B3","v":0}]
["Получено из-за пределов области",{"$f":"'Каменный Уголь'!B4+Кокс!B4+'Коксовый газ'!B4","v":0}]
["Отпущено за пределы области",{"$f":"'Каменный Уголь'!B5+Кокс!B5+'Коксовый газ'!B5","v":0}]
["Изменение запасов",{"$f":"'Каменный Уголь'!B6+Кокс!B6+'Коксовый газ'!B6","v":0}]
["Потреблено всего",{"$f":"'Каменный Уголь'!B7+Кокс!B7+'Коксовый газ'!B7","v":0}]
["Стат.расхождение",{"$f":"'Каменный Уголь'!B8+Кокс!B8+'Коксовый газ'!B8","v":0}]
["Производство ЭЭ и ТЭ",{"$f":"'Каменный Уголь'!B9+Кокс!B9+'Коксовый газ'!B9","v":0}]
["Производство электроэнергии",{"$f":"'Каменный Уголь'!B10+Кокс!B10+'Коксовый газ'!B10","v":0}]
["Производство тепла",{"$f":"'Каменный Уголь'!B11+Кокс!B11+'Коксовый газ'!B11","v":0}]
["Теплоэлектростанции",{"$f":"'Каменный Уголь'!B12+Кокс!B12+'Коксовый газ'!B12","v":0}]
["Котельные",{"$f":"'Каменный Уголь'!B13+Кокс!B13+'Коксовый газ'!B13","v":0}]
["Электрокотельные",{"$f":"'Каменный Уголь'!B14+Кокс!B14+'Коксовый газ'!B14","v":0}]
["В теплоутилизационных и прочих установках",{"$f":"'Каменный Уголь'!B15+Кокс!B15+'Коксовый газ'!B15","v":0}]
["Переработка нефти",{"$f":"'Каменный Уголь'!B16+Кокс!B16+'Коксовый газ'!B16","v":0}]
["Переработка газа",{"$f":"'Каменный Уголь'!B17+Кокс!B17+'Коксовый газ'!B17","v":0}]
["Обогащение угля",{"$f":"'Каменный Уголь'!B18+Кокс!B18+'Коксовый газ'!B18","v":0}]
["Собственные нужды",{"$f":"'Каменный Уголь'!B19+Кокс!B19+'Коксовый газ'!B19","v":0}]
["Потери в сетях",{"$f":"'Каменный Уголь'!B20+Кокс!B20+'Коксовый газ'!B20","v":0}]
["Конечное потребление",{"$f":"'Каменный Уголь'!B21+Кокс!B21+'Коксовый газ'!B21","v":0}]
["Сельское хозяйство",{"$f":"'Каменный Уголь'!B22+Кокс!B22+'Коксовый газ'!B22","v":0}]
["Промышленность",{"$f":"'Каменный Уголь'!B23+Кокс!B23+'Коксовый газ'!B23","v":0}]
["   Добыча полезных ископаемых",{"$f":"'Каменный Уголь'!B24+Кокс!B24+'Коксовый газ'!B24","v":0}]
["   Обрабатывающие производства",{"$f":"'Каменный Уголь'!B25+Кокс!B25+'Коксовый газ'!B25","v":0}]
["   Обеспечение ЭЭ, газом и паром",{"$f":"'Каменный Уголь'!B26+Кокс!B26+'Коксовый газ'!B26","v":0}]
["   Водоснабжение, водоотведение, утилизация отходов",{"$f":"'Каменный Уголь'!B27+Кокс!B27+'Коксовый газ'!B27","v":0}]
["   Прочая промышленность",{"$f":"'Каменный Уголь'!B28+Кокс!B28+'Коксовый газ'!B28","v":0}]
["Строительство ",{"$f":"'Каменный Уголь'!B29+Кокс!B29+'Коксовый газ'!B29","v":0}]
["Транспортировка, хранение и связь",{"$f":"'Каменный Уголь'!B30+Кокс!B30+'Коксовый газ'!B30","v":0}]
["Железнодорожный",{"$f":"'Каменный Уголь'!B31+Кокс!B31+'Коксовый газ'!B31","v":0}]
["Трубопроводный",{"$f":"'Каменный Уголь'!B32+Кокс!B32+'Коксовый газ'!B32","v":0}]
["Автомобильный",{"$f":"'Каменный Уголь'!B33+Кокс!B33+'Коксовый газ'!B33","v":0}]
["Прочий транспорт",{"$f":"'Каменный Уголь'!B34+Кокс!B34+'Коксовый газ'!B34","v":0}]
["Сфера услуг",{"$f":"'Каменный Уголь'!B35+Кокс!B35+'Коксовый газ'!B35","v":0}]
["Население",{"$f":"'Каменный Уголь'!B36+Кокс!B36+'Коксовый газ'!B36","v":0}]
["Неэнергетические нужды",{"$f":"'Каменный Уголь'!B37+Кокс!B37+'Коксовый газ'!B37","v":0}]

{"sheet":"Каменный Уголь","index":5,"n_rows":37,"n_cols":6,"rows_kept":37,"cut":false,"hidden":false,"merged":[]}
[null,null,null,null,{"$f":"Баланс!J1","v":"Московская область."},"2022 год"]
["Каменный Уголь","В баланс, тыс. т у.т., к-т перевода 0.765","В натуральных единицах, т/       т у.т."]
["Выработано",{"$f":"C3*0.765/1000","v":0}]
["Получено из-за пределов области",{"$f":"C4*0.765/1000","v":0}]
["Отпущено за пределы области",0]
["Изменение запасов",0]
["Потреблено всего",0,{"$f":"C3+C4-C5+C6","v":0}]
["Стат.расхождение",0,{"$f":"C7-C9-C16-C17-C18-C19-C20-C21","v":0}]
["Производство ЭЭ и ТЭ",0]
["Производство электроэнергии",0]
["Производство тепла",0]
["Теплоэлектростанции",0]
["Котельные",0]
["Электрокотельные",0]
["В теплоутилизационных и прочих установках",0]
["Переработка нефти",0]
["Переработка газа",0]
["Обогащение угля",0]
["Собственные нужды",0]
["Потери в сетях",0]
["Конечное потребление",0,{"$f":"C22+C23+C29+C30+C35+C36+C37","v":0}]
["Сельское хозяйство",0]
["Промышленность",0]
["   Добыча полезных ископаемых",0]
["   Обрабатывающие производства",0]
["   Обеспечение ЭЭ, газом и паром",0]
["   Водоснабжение, водоотведение, утилизация отходов",0]
["   Прочая промышленность",0]
["Строительство ",0]
["Транспортировка, хранение и связь",0]
["Железнодорожный",0]
["Трубопроводный",0]
["Автомобильный",0]
["Прочий транспорт",0]
["Сфера услуг",0]
["Население",0]
["Неэнергетические нужды",0]

{"sheet":"Кокс","index":6,"n_rows":37,"n_cols":6,"rows_kept":37,"cut":false,"hidden":false,"merged":[]}
[null,null,null,null,{"$f":"Баланс!J1","v":"Московская область."},"2022 год"]
["Кокс","В баланс, тыс. т у.т., к-т перевода 0.9","В натуральных единицах, т"]
["Выработано",{"$f":"C3*0.99/1000","v":0}]
["Получено из-за пределов области",{"$f":"C4*0.99/1000","v":0}]
["Отпущено за пределы области",0]
["Изменение запасов",0]
["Потреблено всего",0,{"$f":"C3+C4-C5+C6","v":0}]
["Стат.расхождение",0,{"$f":"C7-C9-C16-C17-C18-C19-C20-C21","v":0}]
["Производство ЭЭ и ТЭ",0]
["Производство электроэнергии",0]
["Производство тепла",0]
["Теплоэлектростанции",0]
["Котельные",0]
["Электрокотельные",0]
["В теплоутилизационных и прочих установках",0]
["Переработка нефти",0]
["Переработка газа",0]
["Обогащение угля",0]
["Собственные нужды",0]
["Потери в сетях",0]
["Конечное потребление",0,{"$f":"C22+C23+C29+C30+C35+C36+C37","v":0}]
["Сельское хозяйство",0]
["Промышленность",0]
["   Добыча полезных ископаемых",0]
["   Обрабатывающие производства",0]
["   Обеспечение ЭЭ, газом и паром",0]
["   Водоснабжение, водоотведение, утилизация отходов",0]
["   Прочая промышленность",0]
["Строительство ",0]
["Транспортировка, хранение и связь",0]
["Железнодорожный",0]
["Трубопроводный",0]
["Автомобильный",0]
["Прочий транспорт",0]
["Сфера услуг",0]
["Население",0]
["Неэнергетические нужды",0]

{"sheet":"Коксовый газ","index":7,"n_rows":37,"n_cols":6,"rows_kept":37,"cut":false,"hidden":false,"merged":[]}
[null,null,null,null,{"$f":"Баланс!J1","v":"Московская область."},"2022 год"]
["Коксовый газ","В баланс, тыс. т у.т., к-т перевода 0.57","В натуральных единицах, тыс. куб. м"]
["Выработано",{"$f":"C3*0.57/1000","v":0}]
["Получено из-за пределов области",{"$f":"C4*0.57/1000","v":0}]
["Отпущено за пределы области",0]
["Изменение запасов",0]
["Потреблено всего",0,{"$f":"C3+C4-C5+C6","v":0}]
["Стат.расхождение",0,{"$f":"C7-C9-C16-C17-C18-C19-C20-C21","v":0}]
["Производство ЭЭ и ТЭ",0]
["Производство электроэнергии",0]
["Производство тепла",0]
["Теплоэлектростанции",0]
["Котельные",0]
["Электрокотельные",0]
["В теплоутилизационных и прочих установках",0]
["Переработка нефти",0]
["Переработка газа",0]
["Обогащение угля",0]
["Собственные нужды",0]
["Потери в сетях",0]
["Конечное потребление",0,{"$f":"C22+C23+C29+C30+C35+C36+C37","v":0}]
["Сельское хозяйство",0]
["Промышленность",0]
["   Добыча полезных ископаемых",0]
["   Обрабатывающие производства",0]
["   Обеспечение ЭЭ, газом и паром",0]
["   Водоснабжение, водоотведение, утилизация отходов",0]
["   Прочая промышленность",0]
["Строительство ",0]
["Транспортировка, хранение и связь",0]
["Железнодорожный",0]
["Трубопроводный",0]
["Автомобильный",0]
["Прочий транспорт",0]
["Сфера услуг",0]
["Население",0]
["Неэнергетические нужды",0]

{"sheet":"Нефтепродукты","index":8,"n_rows":37,"n_cols":6,"rows_kept":37,"cut":false,"hidden":false,"merged":[]}
[null,null,null,null,{"$f":"Баланс!J1","v":"Московская область."},"2022 год"]
["Нефтепродукты","В баланс, тыс. т у.т."]
["Выработано",{"$f":"Бензин!B3+Дизель!B3+Мазут!B3+СУГ!B3+ТПБ!B3","v":0}]
["Получено из-за пределов области",{"$f":"Бензин!B4+Дизель!B4+Мазут!B4+СУГ!B4+ТПБ!B4","v":0}]
["Отпущено за пределы области",{"$f":"Бензин!B5+Дизель!B5+Мазут!B5+СУГ!B5+ТПБ!B5","v":0}]
["Изменение запасов",{"$f":"Бензин!B6+Дизель!B6+Мазут!B6+СУГ!B6+ТПБ!B6","v":0}]
["Потреблено всего",{"$f":"Бензин!B7+Дизель!B7+Мазут!B7+СУГ!B7+ТПБ!B7","v":0}]
["Стат.расхождение",{"$f":"Бензин!B8+Дизель!B8+Мазут!B8+СУГ!B8+ТПБ!B8","v":0}]
["Производство ЭЭ и ТЭ",{"$f":"Бензин!B9+Дизель!B9+Мазут!B9+СУГ!B9+ТПБ!B9","v":0}]
["Производство электроэнергии",{"$f":"Бензин!B10+Дизель!B10+Мазут!B10+СУГ!B10+ТПБ!B10","v":0}]
["Производство тепла",{"$f":"Бензин!B11+Дизель!B11+Мазут!B11+СУГ!B11+ТПБ!B11","v":0}]
["Теплоэлектростанции",{"$f":"Бензин!B12+Дизель!B12+Мазут!B12+СУГ!B12+ТПБ!B12","v":0}]
["Котельные",{"$f":"Бензин!B13+Дизель!B13+Мазут!B13+СУГ!B13+ТПБ!B13","v":0}]
["Электрокотельные",{"$f":"Бензин!B14+Дизель!B14+Мазут!B14+СУГ!B14+ТПБ!B14","v":0}]
["В теплоутилизационных и прочих установках",{"$f":"Бензин!B15+Дизель!B15+Мазут!B15+СУГ!B15+ТПБ!B15","v":0}]
["Переработка нефти",{"$f":"Бензин!B16+Дизель!B16+Мазут!B16+СУГ!B16+ТПБ!B16","v":0}]
["Переработка газа",{"$f":"Бензин!B17+Дизель!B17+Мазут!B17+СУГ!B17+ТПБ!B17","v":0}]
["Обогащение угля",{"$f":"Бензин!B18+Дизель!B18+Мазут!B18+СУГ!B18+ТПБ!B18","v":0}]
["Собственные нужды",{"$f":"Бензин!B19+Дизель!B19+Мазут!B19+СУГ!B19+ТПБ!B19","v":0}]
["Потери в сетях",{"$f":"Бензин!B20+Дизель!B20+Мазут!B20+СУГ!B20+ТПБ!B20","v":0}]
["Конечное потребление",{"$f":"Бензин!B21+Дизель!B21+Мазут!B21+СУГ!B21+ТПБ!B21","v":0}]
["Сельское хозяйство",{"$f":"Бензин!B22+Дизель!B22+Мазут!B22+СУГ!B22+ТПБ!B22","v":0}]
["Промышленность",{"$f":"Бензин!B23+Дизель!B23+Мазут!B23+СУГ!B23+ТПБ!B23","v":0}]
["   Добыча полезных ископаемых",{"$f":"Бензин!B24+Дизель!B24+Мазут!B24+СУГ!B25+ТПБ!B24","v":0}]
["   Обрабатывающие производства",{"$f":"Бензин!B25+Дизель!B25+Мазут!B25+СУГ!B25+ТПБ!B25","v":0}]
["   Обеспечение ЭЭ, газом и паром",{"$f":"Бензин!B26+Дизель!B26+Мазут!B26+СУГ!B26+ТПБ!B26","v":0}]
["   Водоснабжение, водоотведение, утилизация отходов",{"$f":"Бензин!B27+Дизель!B27+Мазут!B27+СУГ!B27+ТПБ!B27","v":0}]
["   Прочая промышленность",{"$f":"Бензин!B28+Дизель!B28+Мазут!B28+СУГ!B28+ТПБ!B28","v":0}]
["Строительство ",{"$f":"Бензин!B29+Дизель!B29+Мазут!B29+СУГ!B29+ТПБ!B29","v":0}]
["Транспортировка, хранение и связь",{"$f":"Бензин!B30+Дизель!B30+Мазут!B30+СУГ!B30+ТПБ!B30","v":0}]
["Железнодорожный",{"$f":"Бензин!B31+Дизель!B31+Мазут!B31+СУГ!B31+ТПБ!B31","v":0}]
["Трубопроводный",{"$f":"Бензин!B32+Дизель!B32+Мазут!B32+СУГ!B32+ТПБ!B32","v":0}]
["Автомобильный",{"$f":"Бензин!B33+Дизель!B33+Мазут!B33+СУГ!B33+ТПБ!B33","v":0}]
["Прочий транспорт",{"$f":"Бензин!B34+Дизель!B34+Мазут!B34+СУГ!B34+ТПБ!B34","v":0}]
["Сфера услуг",{"$f":"Бензин!B35+Дизель!B35+Мазут!B35+СУГ!B35+ТПБ!B35","v":0}]
["Население",{"$f":"Бензин!B36+Дизель!B36+Мазут!B36+СУГ!B36+ТПБ!B36","v":0}]
["Неэнергетические нужды",{"$f":"Бензин!B37+Дизель!B37+Мазут!B37+СУГ!B37+ТПБ!B37","v":0}]

{"sheet":"Бензин","index":9,"n_rows":37,"n_cols":6,"rows_kept":37,"cut":false,"hidden":false,"merged":[]}
[null,null,null,null,{"$f":"Баланс!J1","v":"Московская область."},"2022 год"]
["Бензин","В баланс, тыс. т у.т., к-т перевода 1.49","В натуральных единицах, т/         т у.т."]
["Выработано",{"$f":"C3*1.49/1000","v":0}]
["Получено из-за пределов области",{"$f":"C4*1.49/1000","v":0}]
["Отпущено за пределы области",0]
["Изменение запасов",0]
["Потреблено всего",0,{"$f":"C3+C4-C5+C6","v":0}]
["Стат.расхождение",0,{"$f":"C7-C9-C16-C17-C18-C19-C20-C21","v":0}]
["Производство ЭЭ и ТЭ",0]
["Производство электроэнергии",0]
["Производство тепла",0]
["Теплоэлектростанции",0]
["Котельные",0]
["Электрокотельные",0]
["В теплоутилизационных и прочих установках",0]
["Переработка нефти",0]
["Переработка газа",0]
["Обогащение угля",0]
["Собственные нужды",0]
["Потери в сетях",0]
["Конечное потребление",0,{"$f":"C22+C23+C29+C30+C35+C36+C37","v":0}]
["Сельское хозяйство",0]
["Промышленность",0]
["   Добыча полезных ископаемых",0]
["   Обрабатывающие производства",0]
["   Обеспечение ЭЭ, газом и паром",0]
["   Водоснабжение, водоотведение, утилизация отходов",0]
["   Прочая промышленность",0]
["Строительство ",0]
["Транспортировка, хранение и связь",0]
["Железнодорожный",0]
["Трубопроводный",0]
["Автомобильный",0]
["Прочий транспорт",0]
["Сфера услуг",0]
["Население",0]
["Неэнергетические нужды",0]

{"sheet":"Дизель","index":10,"n_rows":37,"n_cols":6,"rows_kept":37,"cut":false,"hidden":false,"merged":[]}
[null,null,null,null,{"$f":"Баланс!J1","v":"Московская область."},"2022 год"]
["Топливо дизельное","В баланс, тыс. т у.т., к-т перевода 1.45","В натуральных единицах, т/ т у.т."]
["Выработано",{"$f":"C3*1.45/1000","v":0}]
["Получено из-за пределов области",{"$f":"C4*1.45/1000","v":0}]
["Отпущено за пределы области",0]
["Изменение запасов",0]
["Потреблено всего",0,{"$f":"C3+C4-C5+C6","v":0}]
["Стат.расхождение",0,{"$f":"C7-C9-C16-C17-C18-C19-C20-C21","v":0}]
["Производство ЭЭ и ТЭ",0]
["Производство электроэнергии",0]
["Производство тепла",0]
["Теплоэлектростанции",0]
["Котельные",0]
["Электрокотельные",0]
["В теплоутилизационных и прочих установках",0]
["Переработка нефти",0]
["Переработка газа",0]
["Обогащение угля",0]
["Собственные нужды",0]
["Потери в сетях",0]
["Конечное потребление",0,{"$f":"C22+C23+C29+C30+C35+C36+C37","v":0}]
["Сельское хозяйство",0]
["Промышленность",0]
["   Добыча полезных ископаемых",0]
["   Обрабатывающие производства",0]
["   Обеспечение ЭЭ, газом и паром",0]
["   Водоснабжение, водоотведение, утилизация отходов",0]
["   Прочая промышленность",0]
["Строительство ",0]
["Транспортировка, хранение и связь",0]
["Железнодорожный",0]
["Трубопроводный",0]
["Автомобильный",0]
["Прочий транспорт",0]
["Сфера услуг",0]
["Население",0]
["Неэнергетические нужды",0]

{"sheet":"Мазут","index":11,"n_rows":37,"n_cols":6,"rows_kept":37,"cut":false,"hidden":false,"merged":[]}
[null,null,null,null,{"$f":"Баланс!J1","v":"Московская область."},"2022 год"]
["Мазут топочный","В баланс, тыс. т у.т., к-т перевода 1.37","В натуральных единицах, т/ т у.т."]
["Выработано",{"$f":"C3*1.37/1000","v":0}]
["Получено из-за пределов области",{"$f":"C4*1.37/1000","v":0}]
["Отпущено за пределы области",0]
["Изменение запасов",0]
["Потреблено всего",0,{"$f":"C3+C4-C5+C6","v":0}]
["Стат.расхождение",0,{"$f":"C7-C9-C16-C17-C18-C19-C20-C21","v":0}]
["Производство ЭЭ и ТЭ ",0]
["Производство электроэнергии",0]
["Производство тепла",0]
["Теплоэлектростанции",0]
["Котельные",0]
["Электрокотельные",0]
["В теплоутилизационных и прочих установках",0]
["Переработка нефти",0]
["Переработка газа",0]
["Обогащение угля",0]
["Собственные нужды",0]
["Потери в сетях",0]
["Конечное потребление",0,{"$f":"C22+C23+C29+C30+C35+C36+C37","v":0}]
["Сельское хозяйство",0]
["Промышленность",0]
["   Добыча полезных ископаемых",0]
["   Обрабатывающие производства",0]
["   Обеспечение ЭЭ, газом и паром",0]
["   Водоснабжение, водоотведение, утилизация отходов",0]
["   Прочая промышленность",0]
["Строительство ",0]
["Транспортировка, хранение и связь",0]
["Железнодорожный",0]
["Трубопроводный",0]
["Автомобильный",0]
["Прочий транспорт",0]
["Сфера услуг",0]
["Население",0]
["Неэнергетические нужды",0]

{"sheet":"СУГ","index":12,"n_rows":37,"n_cols":6,"rows_kept":37,"cut":false,"hidden":false,"merged":[]}
[null,null,null,null,{"$f":"Баланс!J1","v":"Московская область."},"2022 год"]
["Сжиженный углеводородный газ ","В баланс, тыс. т у.т., к-т перевода 1.57","В натуральных единицах, т/       т у.т."]
["Выработано",{"$f":"C3*1.57/1000","v":0}]
["Получено из-за пределов области",{"$f":"C4*1.57/1000","v":0}]
["Отпущено за пределы области",0]
["Изменение запасов",0]
["Потреблено всего",0,{"$f":"C3+C4-C5+C6","v":0}]
["Стат.расхождение",0,{"$f":"C7-C9-C16-C17-C18-C19-C20-C21","v":0}]
["Производство ЭЭ и ТЭ",0]
["Производство электроэнергии",0]
["Производство тепла",0]
["Теплоэлектростанции",0]
["Котельные",0]
["Электрокотельные",0]
["В теплоутилизационных и прочих установках",0]
["Переработка нефти",0]
["Переработка газа",0]
["Обогащение угля",0]
["Собственные нужды",0]
["Потери в сетях",0]
["Конечное потребление",0,{"$f":"C22+C23+C29+C30+C35+C36+C37","v":0}]
["Сельское хозяйство",0]
["Промышленность",0]
["   Добыча полезных ископаемых",0]
["   Обрабатывающие производства",0]
["   Обеспечение ЭЭ, газом и паром",0]
["   Водоснабжение, водоотведение, утилизация отходов",0]
["   Прочая промышленность",0]
["Строительство ",0]
["Транспортировка, хранение и связь",0]
["Железнодорожный",0]
["Трубопроводный",0]
["Автомобильный",0]
["Прочий транспорт",0]
["Сфера услуг",0]
["Население",0]
["Неэнергетические нужды",0]

{"sheet":"ТПБ","index":13,"n_rows":37,"n_cols":6,"rows_kept":37,"cut":false,"hidden":false,"merged":[]}
[null,null,null,null,{"$f":"Баланс!J1","v":"Московская область."},"2022 год"]
["Топливо печное бытовое","В баланс, тыс. т у.т., к-т перевода 1.45","В натуральных единицах, т/        т у.т."]
["Выработано",{"$f":"C3*1.45/1000","v":0}]
["Получено из-за пределов области",{"$f":"C4*1.45/1000","v":0}]
["Отпущено за пределы области",0]
["Изменение запасов",0]
["Потреблено всего",0,{"$f":"C3+C4-C5+C6","v":0}]
["Стат.расхождение",0,{"$f":"C7-C9-C16-C17-C18-C19-C20-C21","v":0}]
["Производство ЭЭ и ТЭ",0]
["Производство электроэнергии",0]
["Производство тепла",0]
["Теплоэлектростанции",0]
["Котельные",0]
["Электрокотельные",0]
["В теплоутилизационных и прочих установках",0]
["Переработка нефти",0]
["Переработка газа",0]
["Обогащение угля",0]
["Собственные нужды",0]
["Потери в сетях",0]
["Конечное потребление",0,{"$f":"C22+C23+C29+C30+C35+C36+C37","v":0}]
["Сельское хозяйство",0]
["Промышленность",0]
["   Добыча полезных ископаемых",0]
["   Обрабатывающие производства",0]
["   Обеспечение ЭЭ, газом и паром",0]
["   Водоснабжение, водоотведение, утилизация отходов",0]
["   Прочая промышленность",0]
["Строительство ",0]
["Транспортировка, хранение и связь",0]
["Железнодорожный",0]
["Трубопроводный",0]
["Автомобильный",0]
["Прочий транспорт",0]
["Сфера услуг",0]
["Население",0]
["Неэнергетические нужды",0]

{"sheet":"ПТТ","index":14,"n_rows":37,"n_cols":7,"rows_kept":37,"cut":false,"hidden":false,"merged":[]}
[null,null,null,null,{"$f":"Баланс!J1","v":"Московская область."},{"$f":"Баланс!K1","v":"2022 год"},{"$f":"Баланс!L1","v":0}]
["Прочее твердое топливо, тыс. т у.т.","В баланс, тыс. т у.т."]
["Выработано",{"$f":"'Пр.тв.т. '!B3+Пеллеты!B3+Древесина!B3","v":0}]
["Получено из-за пределов области",{"$f":"'Пр.тв.т. '!B4+Пеллеты!B4+Древесина!B4","v":0}]
["Отпущено за пределы области"]
["Изменение запасов",{"$f":"'Пр.тв.т. '!B6+Пеллеты!B6+Древесина!B6","v":0}]
["Потреблено всего",{"$f":"'Пр.тв.т. '!B7+Пеллеты!B7+Древесина!B7","v":0}]
["Стат.расхождение",{"$f":"'Пр.тв.т. '!B8+Пеллеты!B8+Древесина!B8","v":0}]
["Производство ЭЭ и ТЭ",{"$f":"'Пр.тв.т. '!B9+Пеллеты!B9+Древесина!B9","v":0}]
["Производство электроэнергии",{"$f":"'Пр.тв.т. '!B10+Пеллеты!B10+Древесина!B10","v":0}]
["Производство тепла",{"$f":"'Пр.тв.т. '!B11+Пеллеты!B11+Древесина!B11","v":0}]
["Теплоэлектростанции",{"$f":"'Пр.тв.т. '!B12+Пеллеты!B12+Древесина!B12","v":0}]
["Котельные",{"$f":"'Пр.тв.т. '!B13+Пеллеты!B13+Древесина!B13","v":0}]
["Электрокотельные",{"$f":"'Пр.тв.т. '!B14+Пеллеты!B14+Древесина!B14","v":0}]
["В теплоутилизационных и прочих установках",{"$f":"'Пр.тв.т. '!B15+Пеллеты!B15+Древесина!B15","v":0}]
["Переработка нефти",{"$f":"'Пр.тв.т. '!B16+Пеллеты!B16+Древесина!B16","v":0}]
["Переработка газа",{"$f":"'Пр.тв.т. '!B17+Пеллеты!B17+Древесина!B17","v":0}]
["Обогащение угля",{"$f":"'Пр.тв.т. '!B18+Пеллеты!B18+Древесина!B18","v":0}]
["Собственные нужды",{"$f":"'Пр.тв.т. '!B19+Пеллеты!B19+Древесина!B19","v":0}]
["Потери в сетях",{"$f":"'Пр.тв.т. '!B20+Пеллеты!B20+Древесина!B20","v":0}]
["Конечное потребление",{"$f":"'Пр.тв.т. '!B21+Пеллеты!B21+Древесина!B21","v":0}]
["Сельское хозяйство",{"$f":"'Пр.тв.т. '!B22+Пеллеты!B22+Древесина!B22","v":0}]
["Промышленность",{"$f":"'Пр.тв.т. '!B23+Пеллеты!B23+Древесина!B23","v":0}]
["   Добыча полезных ископаемых",{"$f":"'Пр.тв.т. '!B24+Пеллеты!B24+Древесина!B24","v":0}]
["   Обрабатывающие производства",{"$f":"'Пр.тв.т. '!B25+Пеллеты!B25+Древесина!B25","v":0}]
["   Обеспечение ЭЭ, газом и паром",{"$f":"'Пр.тв.т. '!B26+Пеллеты!B26+Древесина!B26","v":0}]
["   Водоснабжение, водоотведение, утилизация отходов",{"$f":"'Пр.тв.т. '!B27+Пеллеты!B27+Древесина!B27","v":0}]
["   Прочая промышленность",{"$f":"'Пр.тв.т. '!B28+Пеллеты!B28+Древесина!B28","v":0}]
["Строительство ",{"$f":"'Пр.тв.т. '!B29+Пеллеты!B29+Древесина!B29","v":0}]
["Транспортировка, хранение и связь",{"$f":"'Пр.тв.т. '!B30+Пеллеты!B30+Древесина!B30","v":0}]
["Железнодорожный",{"$f":"'Пр.тв.т. '!B31+Пеллеты!B31+Древесина!B31","v":0}]
["Трубопроводный",{"$f":"'Пр.тв.т. '!B32+Пеллеты!B32+Древесина!B32","v":0}]
["Автомобильный",{"$f":"'Пр.тв.т. '!B33+Пеллеты!B33+Древесина!B33","v":0}]
["Прочий транспорт",{"$f":"'Пр.тв.т. '!B34+Пеллеты!B34+Древесина!B34","v":0}]
["Сфера услуг",{"$f":"'Пр.тв.т. '!B35+Пеллеты!B35+Древесина!B35","v":0}]
["Население",{"$f":"'Пр.тв.т. '!B36+Пеллеты!B36+Древесина!B36","v":0}]
["Неэнергетические нужды",{"$f":"'Пр.тв.т. '!B37+Пеллеты!B37+Древесина!B37","v":0}]

{"sheet":"Пеллеты","index":15,"n_rows":37,"n_cols":4,"rows_kept":37,"cut":false,"hidden":false,"merged":[]}
[null,null,{"$f":"Баланс!J1","v":"Московская область."},"2022 год"]
["Пеллеты","В баланс, тыс. т у.т."]
["Выработано"]
["Получено из-за пределов области"]
["Отпущено за пределы области"]
["Изменение запасов"]
["Потреблено всего",{"$f":"B3+B4-B5+B6","v":0}]
["Стат.расхождение",{"$f":"B7-B9-B16-B17-B18-B19-B20-B21","v":0}]
["Производство ЭЭ и ТЭ"]
["Производство электроэнергии"]
["Производство тепла"]
["Теплоэлектростанции"]
["Котельные"]
["Электрокотельные"]
["В теплоутилизационных и прочих установках"]
["Переработка нефти"]
["Переработка газа"]
["Обогащение угля"]
["Собственные нужды"]
["Потери в сетях"]
["Конечное потребление",{"$f":"B22+B23+B29+B30+B35+B36+B37","v":0}]
["Сельское хозяйство"]
["Промышленность"]
["   Добыча полезных ископаемых"]
["   Обрабатывающие производства"]
["   Обеспечение ЭЭ, газом и паром"]
["   Водоснабжение, водоотведение, утилизация отходов"]
["   Прочая промышленность"]
["Строительство "]
["Транспортировка, хранение и связь"]
["Железнодорожный"]
["Трубопроводный"]
["Автомобильный"]
["Прочий транспорт"]
["Сфера услуг"]
["Население"]
["Неэнергетические нужды"]

{"sheet":"Древесина","index":16,"n_rows":37,"n_cols":6,"rows_kept":37,"cut":false,"hidden":false,"merged":[]}
[null,null,null,null,{"$f":"Баланс!J1","v":"Московская область."},{"$f":"Баланс!K1","v":"2022 год"}]
["Древесина","В баланс, тыс. т у.т., к-т перевода 0.266","В натуральных единицах, куб. м"]
["Выработано",{"$f":"C3*0.266/1000","v":0}]
["Получено из-за пределов области",{"$f":"C4*0.266","v":0}]
["Отпущено за пределы области",0]
["Изменение запасов",{"$f":"C6*0.266/1000","v":0}]
["Потреблено всего",0,{"$f":"C3+C4-C5+C6","v":0}]
["Стат.расхождение",0,{"$f":"C7-C9-C16-C17-C18-C19-C20-C21","v":0}]
["Производство ЭЭ и ТЭ",0]
["Производство электроэнергии",0]
["Производство тепла",0]
["Теплоэлектростанции",0]
["Котельные",0]
["Электрокотельные",0]
["В теплоутилизационных и прочих установках",0]
["Переработка нефти",0]
["Переработка газа",0]
["Обогащение угля",0]
["Собственные нужды",0]
["Потери в сетях",0]
["Конечное потребление",0,{"$f":"C22+C23+C29+C30+C35+C36+C37","v":0}]
["Сельское хозяйство",0]
["Промышленность",0]
["   Добыча полезных ископаемых",0]
["   Обрабатывающие производства",0]
["   Обеспечение ЭЭ, газом и паром",0]
["   Водоснабжение, водоотведение, утилизация отходов",0]
["   Прочая промышленность",0]
["Строительство ",0]
["Транспортировка, хранение и связь",0]
["Железнодорожный",0]
["Трубопроводный",0]
["Автомобильный",0]
["Прочий транспорт",0]
["Сфера услуг",0]
["Население",0]
["Неэнергетические нужды",0]

{"sheet":"Пр.тв.т. ","index":17,"n_rows":37,"n_cols":6,"rows_kept":37,"cut":false,"hidden":false,"merged":[]}
[null,null,null,null,{"$f":"Баланс!J1","v":"Московская область."},{"$f":"Баланс!K1","v":"2022 год"}]
["Прочее твердое топливо","В баланс, тыс. т у.т."]
["Выработано"]
["Получено из-за пределов области"]
["Отпущено за пределы области"]
["Изменение запасов"]
["Потреблено всего",{"$f":"B3+B4-B5+B6","v":0}]
["Стат.расхождение",{"$f":"B7-B9-B16-B17-B18-B19-B20-B21","v":0}]
["Производство ЭЭ и ТЭ"]
["Производство электроэнергии"]
["Производство тепла"]
["Теплоэлектростанции"]
["Котельные"]
["Электрокотельные"]
["В теплоутилизационных и прочих установках"]
["Переработка нефти"]
["Переработка газа"]
["Обогащение угля"]
["Собственные нужды"]
["Потери в сетях"]
["Конечное потребление",{"$f":"B22+B23+B29+B30+B35+B36+B37","v":0}]
["Сельское хозяйство"]
["Промышленность"]
["   Добыча полезных ископаемых"]
["   Обрабатывающие производства"]
["   Обеспечение ЭЭ, газом и паром"]
["   Водоснабжение, водоотведение, утилизация отходов"]
["   Прочая промышленность"]
["Строительство "]
["Транспортировка, хранение и связь"]
["Железнодорожный"]
["Трубопроводный"]
["Автомобильный"]
["Прочий транспорт"]
["Сфера услуг"]
["Население"]
["Неэнергетические нужды"]